Cogmind - Beta 16.1 @@@ ROGUE MODE // 2026.03.31 @ 18:16:59 Player: Ceorik Result: Self-destructed Performance ------------- Evolutions (6) 3000 Regions Visited (16) 3200 Robots Destroyed (167) 835 Value Destroyed (10448) 10448 Prototype IDs (6) 120 Alien Tech Used (0) 0 Bonus (7143) 7143 TOTAL SCORE: 24746 Bonus ------- High Alert Combat Kills 527 Follower Combat Kills 2441 Entered Garrisons 1200 Used RIF Installer 3000 Friendly Fire -25 Cogmind --------- Core Integrity 144/1150 Matter 255/300 Energy 400/400 System Corruption 0% Temperature Cool (0) Movement Rolling (170) Ox6 Location -4/Factory Parts ------- > --- POWER (2) -------- Reinforced Fission Core Light Quantum Reactor > --- PROPULSION (4) --- Improved Treads Wheel Wheel Wheel > --- UTILITY (11) ----- Advanced Cooling System Improved Coolant Injector Huge Storage Unit Enhanced Optical Array Improved Medium Armor Plating Relay Coupler [NC] (33) Relay Coupler [Swarmer] (35) Relay Coupler [Grunt] (11) Relay Coupler [Demolisher] (19) Relay Coupler [Specialist] (12) Relay Coupler [Hunter] (14) > --- WEAPON (2) ------- Phase Gun > --- INVENTORY (25) --- Antimatter Reactor Light Antimatter Reactor Light Quantum Reactor Myomer Leg Advanced Heat Sink Large Storage Unit Matter Compressor (250) Improved Medium Armor Plating Relay Coupler [Swarmer] (32) Relay Coupler [Cutter] (35) Relay Coupler [Duelist] (23) Relay Coupler [Demolisher] (25) Relay Coupler [Heavy] (14) Relay Coupler [Behemoth] (12) Advanced System Restoration Module Plasma Rifle HERF Cannon Heavy Phase Cannon Enhanced Gauss Cannon Enhanced Gauss Cannon Hardcell Cannon Hardcell Cannon Plasma Lance Peak State ------------ > --- POWER ------------ Reinforced Fission Core Light Quantum Reactor > --- PROPULSION ------- Improved Heavy Treads Improved Heavy Treads > --- UTILITY ---------- Advanced Cooling System Improved Coolant Injector Huge Storage Unit Enhanced Optical Array Improved Medium Armor Plating Relay Coupler [Swarmer] Relay Coupler [Grunt] Relay Coupler [Demolisher] Relay Coupler [Specialist] Relay Coupler [Hunter] Relay Coupler [Hunter] > --- WEAPON ----------- Plasma Rifle Phase Gun > --- INVENTORY -------- Neutrino Core Light Antimatter Reactor Light Particle Reactor Light Quantum Reactor Improved Treads Myomer Leg Wheel Large Storage Unit Matter Compressor Relay Coupler [NC] Relay Coupler [Swarmer] Relay Coupler [Cutter] Relay Coupler [Duelist] Relay Coupler [Demolisher] Relay Coupler [Heavy] Relay Coupler [Behemoth] Plasma Rifle Hardcell Cannon Hardcell Cannon Plasma Lance [Rating: 113] Favorites ----------- Power Light Quantum Reactor Engine Improved Ion Engine Power Core Reinforced Fission Core Reactor Light Quantum Reactor Propulsion Biometal Leg Treads Light Treads Leg Biometal Leg Wheel Armored Huge Wheel Hover Unit Antigrav System Flight Unit VTOL Module Utility Huge Storage Unit Device Improved Heat Sink Storage Huge Storage Unit Processor Enhanced Optical Array Hackware Relay Coupler [Swarmer] Protection Hardened Light Armor Plating Weapon Improved Remote Datajack Energy Gun Plasma Rifle Energy Cannon Heavy Particle Cannon Ballistic Gun Heavy Battle Rifle Ballistic Cannon Hardcell Cannon Launcher Rocket Launcher Special Weapon Improved Remote Datajack Impact Weapon Power Maul Piercing Weapon Plasma Lance Build | -11 -10 -10 -10 -8 -8 -7 -7 -7 -7 -6 -6 -5 -5 -4 -4 -4 ------- Run | Yrd Mat Min Sub Mat Gar Fac Gar Fac Gar Fac Gar Fac Gar Fac Gar Fac Slots Evolved 12 | . . . . 4 . 2 . . . 2 . 2 . 2 . . Power 1 | . . . . . . . . . . . . 1 . . . . Propulsion 2 | . . . . 2 . . . . . . . . . . . . Utility 9 | . . . . 2 . 2 . . . 2 . 1 . 2 . . Weapon . | . . . . . . . . . . . . . . . . . Parts Attached 202 | 8 14 3 7 17 10 13 23 5 11 3 6 8 13 14 41 6 Power 23 | 1 1 . 1 1 1 1 2 . . . . 1 3 3 8 . Engine 8 | 1 1 . 1 1 1 1 . . . . . . 1 1 . . Core 4 | . . . . . . . 1 . . . . . 1 . 2 . Reactor 11 | . . . . . . . 1 . . . . 1 1 2 6 . Propulsion 49 | 3 4 . 3 6 3 5 6 1 . . 1 1 2 2 8 4 Treads 16 | 2 4 . 1 1 . 1 . 1 . . . . . 1 4 1 Leg 16 | . . . . 5 2 . 3 . . . 1 . 2 . 3 . Wheel 13 | 1 . . 2 . . 4 1 . . . . 1 . 1 . 3 Hover 2 | . . . . . 1 . . . . . . . . . 1 . Flight 2 | . . . . . . . 2 . . . . . . . . . Utility 97 | 2 6 1 1 7 4 6 12 3 10 2 4 4 7 7 19 2 Device 22 | 1 . . . 6 3 3 3 . . . . . . . 5 1 Storage 4 | 1 2 1 . . . . . . . . . . . . . . Processor 6 | . 2 . . . . 2 . . . 1 1 . . . . . Hackware 45 | . . . . . . . 5 3 8 1 3 2 6 5 11 1 Protection 20 | . 2 . 1 1 1 1 4 . 2 . . 2 1 2 3 . Artifact . | . . . . . . . . . . . . . . . . . Weapon 33 | 2 3 2 2 3 2 1 3 1 1 1 1 2 1 2 6 . Energy Gun 5 | . 1 1 . . . . . . . . . . . . 3 . Energy Cannon 6 | . . . . 1 1 1 1 . . 1 . 1 . . . . Ballistic Gun 7 | 2 2 1 1 1 . . . . . . . . . . . . Ballistic Cannon 3 | . . . . . . . . . . . . . 1 1 1 . Launcher 4 | . . . 1 1 1 . . . . . 1 . . . . . Special Weapon 5 | . . . . . . . 1 . 1 . . 1 . 1 1 . Impact Weapon 2 | . . . . . . . 1 1 . . . . . . . . Slashing Weapon . | . . . . . . . . . . . . . . . . . Piercing Weapon 1 | . . . . . . . . . . . . . . . 1 . Special Melee Weapon . | . . . . . . . . . . . . . . . . . Unidentified Prototypes 6 | . . . . 2 1 . 1 1 . . . . . . 1 . Parts Lost 52 | . 3 . 3 2 1 1 5 . . . 1 2 4 12 15 3 Power 11 | . . . . 1 . . 1 . . . . 1 1 3 4 . Propulsion 18 | . . . 2 . 1 1 3 . . . 1 1 1 4 2 2 Utility 15 | . 2 . 1 1 . . . . . . . . 2 3 6 . Weapon 8 | . 1 . . . . . 1 . . . . . . 2 3 1 Highest Loss Streak 8 | . 2 . 1 1 1 1 2 . . . 1 2 4 6 8 2 To Critical Strikes 1 | . . . . . . . . . . . . . . 1 . . Average Backups 21 | 2 9 16 22 23 24 24 24 24 22 22 22 22 23 20 19 22 Power 2 | . 2 2 4 4 4 3 1 1 2 2 2 1 . . 2 4 Propulsion 2 | 1 3 4 5 5 5 . 1 1 2 2 2 1 1 1 1 1 Utility 11 | . 1 6 7 6 8 15 16 15 11 13 13 13 16 14 11 9 Weapon 4 | . 1 3 5 7 6 5 3 3 3 3 3 3 3 3 3 6 Tool/Special . | . . . . . . . . . . . . . . . . . Unused Backups 75 | . 3 1 1 10 11 8 9 1 4 . . 1 2 . 4 20 Power 14 | . 1 . . 3 1 2 1 . 2 . . . . . . 4 Propulsion 11 | . . . . . 7 2 . 1 . . . . . . . 1 Utility 31 | . 1 1 1 1 1 1 7 . 1 . . 1 2 . 4 10 Weapon 19 | . 1 . . 6 2 3 1 . 1 . . . . . . 5 Tool/Special . | . . . . . . . . . . . . . . . . . Average Slot Usage (%) 89 | . 98 100 100 57 78 94 97 92 91 86 92 91 92 91 84 92 Engine 4 | . 14 14 14 7 7 6 . . . . . . 4 . . . Reactor 3 | . . . . . . . 5 7 7 6 6 8 4 5 8 5 Treads 6 | . 28 21 14 2 . 4 . 6 7 6 3 . . . 3 9 Leg 8 | . . . . 13 33 8 12 7 7 6 8 11 10 9 3 . Wheel 7 | . . 6 13 . . 17 13 7 7 6 6 5 5 5 3 3 Device 5 | . 1 . . 10 14 17 6 . . 1 1 1 . 1 7 10 Storage 7 | . 14 14 14 7 7 6 7 7 7 6 6 5 5 5 5 5 Processor 6 | . 6 . . . . 9 12 7 . 4 8 11 11 10 8 5 Hackware 14 | . . . . . . . 7 23 30 26 29 28 31 36 26 31 Protection 7 | . 4 14 14 7 7 6 10 7 5 6 5 4 2 2 3 4 Energy Gun 3 | . 12 14 13 . . . . . . . . . . . 4 10 Energy Cannon 3 | . . . . 5 7 6 6 7 6 6 5 5 4 . . . Ballistic Gun 3 | . 15 14 13 2 . . . . . . . . . . . . Special Weapon 2 | . . . . . . . 3 7 7 6 6 5 5 4 2 . Peak Build Rating 113 | 7 9 12 18 54 58 65 68 67 68 74 76 89 94 99 113 108 Average Rating 58 | 4 7 10 16 41 53 48 60 61 64 69 74 83 87 95 95 100 On Entrance 52 | . 7 9 12 18 54 56 48 67 62 63 74 74 80 94 67 113 Avg Prop Armor Cover (%) 9 | 13 . 9 9 7 4 6 9 11 13 13 12 9 10 10 7 2 Naked Turns . | . . . . . . . . . . . . . . . . . Heaviest Build 136 | 14 33 95 99 104 111 124 124 113 113 110 110 132 128 136 136 136 Greatest Support 150 | 40 40 40 16 112 105 105 48 28 28 28 28 28 28 28 150 150 Greatest Overweight (x) 9 | 1 . 9 9 9 1 7 7 4 4 3 3 4 4 4 4 1 Average Overweight (x) 3 | . . 3 8 1 . 1 3 4 3 3 3 3 3 3 2 . Largest Inventory Capacity 25 | 8 15 25 25 25 25 25 25 25 25 25 25 25 25 25 25 25 Average Capacity 23 | 6 10 19 25 25 25 25 25 25 25 25 25 25 25 25 25 25 Most Carried 25 | 5 15 19 25 25 25 25 25 25 25 25 25 25 25 24 25 25 Average Carried 22 | 2 9 16 24 24 24 24 24 24 24 24 24 23 24 21 19 22 Final Capacity 25 | 8 15 25 25 25 25 25 25 25 25 25 25 25 25 25 25 25 Final Carried 25 | 5 15 19 25 25 25 25 25 25 25 24 25 22 25 16 20 23 Class Distribution -------------------- 32% | Mutant 26% | Botlord-Mutant 21% | Scavenger-Mutant 19% | Bothacker-Mutant Dominant Class ---------------- Mutant | -10/Materials Mutant | -10/Mines Mutant | -10/Subcaves Mutant | -8/Materials Mutant | -8/Garrison Scavenger-Mutant | -7/Factory Bothacker-Mutant | -7/Garrison Bothacker-Mutant | -7/Factory Bothacker-Mutant | -7/Garrison Bothacker-Mutant | -6/Factory Botlord-Mutant | -6/Garrison Botlord-Mutant | -5/Factory Botlord-Mutant | -5/Garrison Botlord-Mutant | -4/Factory Botlord-Mutant | -4/Garrison Scavenger-Mutant | -4/Factory Resources | -11 -10 -10 -10 -8 -8 -7 -7 -7 -7 -6 -6 -5 -5 -4 -4 -4 ----------- Run | Yrd Mat Min Sub Mat Gar Fac Gar Fac Gar Fac Gar Fac Gar Fac Gar Fac Matter Collected 5001 | 213 277 82 231 382 166 231 314 110 428 46 482 107 389 336 1166 41 Remotely . | . . . . . . . . . . . . . . . . . Salvage Created 7694 | 12 482 158 222 899 597 778 787 . 513 46 938 138 345 77 1598 104 Parts 340 | 4 23 9 16 43 36 41 38 . 18 5 23 7 12 6 55 4 Haulers Intercepted 2 | . 1 . . 1 . . . . . . . . . . . . Recyclers Shooed 6 | . 1 1 . 2 . 1 . . . . . . . 1 . . Parts Field Recycled . | . . . . . . . . . . . . . . . . . Retrieved Matter . | . . . . . . . . . . . . . . . . . Parts Self-Destructed 3 | . . . 3 . . . . . . . . . . . . . Prevented . | . . . . . . . . . . . . . . . . . Parts Restored . | . . . . . . . . . . . . . . . . . Kills | -11 -10 -10 -10 -8 -8 -7 -7 -7 -7 -6 -6 -5 -5 -4 -4 -4 ------- Run | Yrd Mat Min Sub Mat Gar Fac Gar Fac Gar Fac Gar Fac Gar Fac Gar Fac Combat Hostiles Destroyed 140 | . 13 2 8 18 17 11 19 . 6 1 15 3 5 3 18 1 Melee 7 | . . . . . . . . . . . . . . . 7 . Guns 31 | . 13 2 3 7 . . . . . . . . . . 6 . Cannons 66 | . . . . 8 13 9 15 . 5 1 5 2 2 3 3 . AOE 19 | . . . 5 2 4 2 . . . . 4 . 2 . . . Classes Destroyed 16 | 1 6 1 2 . 2 2 1 . . . . . . . 1 . Worker 8 | . . 1 . 2 . 2 . . . . . . . 3 . . Tunneler 4 | 1 . 1 . . . 1 . . . . . . . . . 1 Hauler 2 | . 1 . . 1 . . . . . . . . . . . . Recycler 7 | . 1 1 . 2 . 3 . . . . . . . . . . Operator 2 | . 1 . . . . . . . 1 . . . . . . . Drone 1 | . . . . . . 1 . . . . . . . . . . Watcher 4 | . 1 . . . . 3 . . . . . . . . . . Swarmer 32 | . 6 1 1 6 4 3 7 . . . 1 . . . 3 . Grunt 63 | . 7 1 . 8 11 5 5 . 2 . 13 . 2 . 9 . Brawler 3 | . . . . . 1 . 1 . . . 1 . . . . . Duelist 2 | . . . . . . 1 1 . . . . . . . . . Sentry 12 | . . . 1 4 . . 1 . 2 . . . 2 . 1 1 Hunter 5 | . . . . . . . 1 . . . . 1 1 2 . . Programmer 14 | . . . . . 1 2 3 . 2 1 . 2 . 1 2 . Striker 3 | . . . . . . . . . . . . . . . 3 . Subdweller 6 | . . . 6 . . . . . . . . . . . . . Best Kill Streak 10 | 1 4 2 3 7 5 6 3 . 4 1 10 2 2 3 2 1 Combat Bots Only 10 | . 4 1 3 6 5 3 3 . 4 1 10 2 2 1 2 1 Max Kills in Single Turn 3 | 1 1 1 2 2 3 2 1 . 1 1 3 1 1 2 1 1 Gunslinging . | . . . . . . . . . . . . . . . . . Exploded 3 | . . . 2 2 3 1 . . . . 2 . 1 . . . Melee 1 | . . . . . . . . . . . . . . . 1 . Uniques/NPCs Destroyed . | . . . . . . . . . . . . . . . . . Combat | -11 -10 -10 -10 -8 -8 -7 -7 -7 -7 -6 -6 -5 -5 -4 -4 -4 -------- Run | Yrd Mat Min Sub Mat Gar Fac Gar Fac Gar Fac Gar Fac Gar Fac Gar Fac Hostile Shots Fired 1100 | . 70 16 33 83 89 55 104 1 85 2 23 30 62 171 246 30 Missed 321 | . 8 1 5 26 27 19 37 . 26 2 10 12 18 52 67 11 Hits 779 | . 62 15 28 57 62 36 67 1 59 . 13 18 44 119 179 19 Melee 60 | . . . . . 3 . . . . . . . . . 57 . Projectile 719 | . 62 15 28 57 59 36 67 1 59 . 13 18 44 119 122 19 AOE 5 | . . . . . . . 2 . . . . 1 1 1 . . Critical Strikes 40 | . . . 1 2 1 5 2 1 2 . 1 5 1 4 15 . Damage Taken 13599 | . 672 139 516 756 833 545 935 14 660 . 247 443 1005 2197 4223 414 Core 1959 | . 129 10 80 113 38 76 111 . 189 . 57 20 130 334 629 43 Absorbed by Shields 1451 | . . . . 60 180 8 . . . . . . . . 1203 . Ignored by Resistances 307 | . . . . . . . 53 . . . . . . 163 91 . Core Remaining (%) 68 | 100 . . 12 . 72 . . . 46 . 93 . 85 . . . Volleys Fired 807 | 1 48 18 19 74 90 49 128 13 66 7 40 14 69 61 104 6 Largest 2 | 2 2 2 2 2 1 1 1 1 1 1 1 1 1 1 2 2 Hottest 163 | 40 70 85 98 75 75 65 75 7 75 80 80 90 90 51 163 163 Shots Fired 983 | 2 93 36 30 92 91 49 130 14 68 7 40 14 71 61 173 12 Gun 338 | 2 93 36 22 34 . . . . . . . . . . 139 12 Cannon 522 | . . . . 55 89 47 125 1 53 3 25 11 50 48 15 . Launcher 32 | . . . 8 3 2 2 . . . . 8 . 8 . 1 . Special 91 | . . . . . . . 5 13 15 4 7 3 13 13 18 . Kinetic 190 | 2 55 18 11 34 . . . . . . . . 7 48 15 . Thermal 670 | . 38 18 11 55 89 47 125 1 53 3 25 11 43 . 139 12 Explosive 15 | . . . 8 3 2 2 . . . . . . . . . . Electromagnetic 17 | . . . . . . . . . . . 8 . 8 . 1 . Robot Hit Streak 33 | 1 11 5 10 9 14 11 12 11 33 5 10 5 16 9 14 6 Robot Miss Streak 5 | 1 4 5 1 5 2 2 3 1 1 1 3 1 3 4 3 2 Penetration Max . | . . . . . . . . . . . . . . . . . Secondary Targets 3 | . . . . . . . . . . . . . . . 3 . Max Gunslinging Chain 1 | . . . . . . . . . . . . . . . 1 . Shots Hit Robots 653 | 1 63 20 22 63 59 29 77 12 57 5 21 8 36 36 137 7 Core Hits 271 | 1 28 8 12 33 31 26 25 . 8 1 20 4 10 7 54 3 Critical Kills 4 | . . . . 1 . . 1 . 1 . . 1 . . . . Critical Parts Destroyed 6 | . . . . . . . 4 . 2 . . . . . . . Critical Strikes 32 | . 2 1 . 1 . . 5 . 3 . . 1 . 6 11 2 Burn 9 | . 2 1 . . . . . . . . . . . . 4 2 Meltdown 4 | . . . . 1 . . 1 . 1 . . 1 . . . . Blast 6 | . . . . . . . . . . . . . . 6 . . Smash 6 | . . . . . . . 4 . 2 . . . . . . . Impale 7 | . . . . . . . . . . . . . . . 7 . Melee Attacks 59 | . . . . . . . 4 . 10 . . . . . 45 . Impact 14 | . . . . . . . 4 . 10 . . . . . . . Slashing . | . . . . . . . . . . . . . . . . . Piercing 45 | . . . . . . . . . . . . . . . 45 . Sneak Attacks 4 | . . . . . . . 2 . 1 . . . . . 1 . Combat Hostiles 1 | . . . . . . . . . . . . . . . 1 . Follow-up Attacks . | . . . . . . . . . . . . . . . . . Damage Inflicted 18828 | 18 686 269 924 1778 1766 1390 2008 . 1446 57 1431 236 1243 1195 4216 165 Guns 3563 | 18 673 246 347 457 . . . . . . . . . . 1657 165 Cannons 8917 | . . . . 1025 1460 860 1790 . 911 57 357 236 865 1006 350 . Explosions 3393 | . . . 577 279 306 530 . . . . 1074 . 378 189 60 . Melee 2859 | . . . . . . . 218 . 535 . . . . . 2106 . Ramming 96 | . 13 23 . 17 . . . . . . . . . . 43 . Kinetic 2620 | 18 360 92 195 457 . . . . . . . . 142 1006 350 . Thermal 10353 | . 313 154 152 1025 1460 1164 1790 . 911 57 357 236 723 189 1657 165 Explosive 1388 | . . . 577 279 306 226 . . . . . . . . . . Electromagnetic 1512 | . . . . . . . . . . . 1074 . 378 . 60 . Impact 753 | . . . . . . . 218 . 535 . . . . . . . Slashing . | . . . . . . . . . . . . . . . . . Piercing 2106 | . . . . . . . . . . . . . . . 2106 . Highest Corruption 7 | . . . . 1 7 2 3 3 7 . . 4 5 1 4 4 Average Corruption 3 | . . . . 1 4 1 2 3 5 . . 3 4 1 2 3 Corruption Purged 4 | . . . . . . . . . . . . . . . . 4 Corruption Blocked . | . . . . . . . . . . . . . . . . . Effects 210 | . . . . 10 22 13 35 12 38 . . 4 40 3 31 2 Message Errors 54 | . . . . 3 6 4 7 5 9 . . 3 7 . 10 . Matter Fused 47 | . . . . 3 6 4 8 2 9 . . 1 8 . 4 2 Heat Flow Errors 33 | . . . . 2 2 1 3 2 10 . . . 8 2 3 . Energy Discharges 21 | . . . . . 3 1 7 . 3 . . . 3 . 4 . Parts Rejected 2 | . . . . . . . . 1 . . . . 1 . . . Parts Fused 2 | . . . . . . . . . . . . . . . 2 . Data Loss (minor) 25 | . . . . . 1 2 6 1 3 . . . 7 1 4 . Data Loss (major) 5 | . . . . 1 . 1 . . . . . . 1 . 2 . Misfires 13 | . . . . 1 2 . 2 1 2 . . . 3 . 2 . Alerts 6 | . . . . . 1 . 2 . 2 . . . 1 . . . Weapon Failures 2 | . . . . . 1 . . . . . . . 1 . . . Overload Shots . | . . . . . . . . . . . . . . . . . Overflow Damage 739 | . . . . 12 12 62 218 . 204 . . 5 49 76 101 . Projectiles 127 | . . . . 10 . . . . 10 . . 5 32 31 39 . Explosions 136 | . . . . . 12 62 . . . . . . 17 45 . . Melee 476 | . . . . 2 . . 218 . 194 . . . . . 62 . Knockbacks 15 | . 1 . . 1 . . . . 1 . . . . 8 4 . Impact 3 | . 1 . . 1 . . . . 1 . . . . . . . Kinetic 12 | . . . . . . . . . . . . . . 8 4 . Secondary . | . . . . . . . . . . . . . . . . . Self-Inflicted Damage 147 | . . 8 9 31 40 . . . . . . . 59 . . . Shots 8 | . . . 1 1 2 . . . . . . . 4 . . . Rammed 12 | . 2 3 . . . . . . . . . . . . 7 . Targets Rammed 15 | . 4 3 . 1 . . . . . . . . . . 7 . Kicked 1 | . . . . 1 . . . . . . . . . . . . Crushed 2 | . 2 . . . . . . . . . . . . . . . Highest Temperature 354 | . 148 120 6 173 225 109 249 277 297 56 102 152 354 231 84 36 Average Temperature 53 | . 48 51 4 49 50 16 38 99 72 24 22 74 90 31 15 15 Received Heat Transfer 2535 | . 249 24 78 295 357 250 285 27 132 . 117 12 162 183 337 27 Effects 3 | . . . . . . . . . . . . . 3 . . . Interference 3 | . . . . . . . . . . . . . 3 . . . Siege Activations . | . . . . . . . . . . . . . . . . . Martial Activations . | . . . . . . . . . . . . . . . . . Shielding Activations . | . . . . . . . . . . . . . . . . . Robots Disrupted 1 | . . . . . . . . . . . 1 . . . . . Combat Hostiles 1 | . . . . . . . . . . . 1 . . . . . Robots Corrupted 13 | . . . . . . . 3 . 4 . 5 . 1 . . . Combat Hostiles 11 | . . . . . . . 3 . 2 . 5 . 1 . . . Parts Fried 16 | . . . . . . . 1 . 9 . 5 . 1 . . . Impact Corruptions 13 | . . . . 1 . . 6 . 6 . . . . . . . Robots Melted 8 | . . . . 1 . . 1 . 1 . 1 1 . . 2 1 Combat Hostiles 8 | . . . . 1 . . 1 . 1 . 1 1 . . 2 1 Parts Melted 32 | . . 1 . 5 5 . 3 . 2 . 3 1 . . 9 3 Heat Transferred 16631 | . 1036 518 370 1517 2146 1347 2477 . 975 100 700 222 700 150 3888 485 Parts Sabotaged . | . . . . . . . . . . . . . . . . . Parts Stolen . | . . . . . . . . . . . . . . . . . Parts Stripped . | . . . . . . . . . . . . . . . . . Power Chain Reactions . | . . . . . . . . . . . . . . . . . Alert | -11 -10 -10 -10 -8 -8 -7 -7 -7 -7 -6 -6 -5 -5 -4 -4 -4 ------- Run | Yrd Mat Min Sub Mat Gar Fac Gar Fac Gar Fac Gar Fac Gar Fac Gar Fac Maximum Alert Level 5 | . . . . . 3 1 5 3 3 2 1 1 3 2 2 1 Low Security (%) 42 | 100 100 100 . 100 22 28 2 . . 47 58 94 22 37 51 64 Level 1 22 | . . . . . 24 71 9 33 12 39 41 5 18 56 23 35 Level 2 18 | . . . . . 48 . 18 14 56 13 . . 40 5 24 . Level 3 11 | . . . . . 3 . 38 51 31 . . . 19 . . . Level 4 2 | . . . . . . . 16 . . . . . . . . . Level 5 2 | . . . . . . . 13 . . . . . . . . . High Security . | . . . . . . . . . . . . . . . . . Max Security . | . . . . . . . . . . . . . . . . . Peak Influence 2002 | 5 125 45 . 116 718 379 2002 1050 797 417 392 205 794 415 552 289 Initial 1050 | . . 14 . . 66 376 174 1050 258 417 103 205 51 415 7 289 Average 363 | . 49 2 . 32 395 252 955 693 558 274 240 127 433 239 226 162 Influence Increases 8020 | 5 380 85 40 581 662 475 2158 91 839 51 399 79 801 440 913 21 Destroy 0b10 Robot/C 3475 | . 260 40 40 360 340 220 780 40 360 30 240 45 324 132 252 12 Destroy 0b10 Robot/NC 181 | 5 20 15 . 25 . 45 5 . 25 4 . . 4 15 15 3 Destroy Leader 418 | . 64 . . 82 20 56 30 10 40 10 16 16 24 38 6 6 Allied During Kill 353 | . . . . . . . 123 11 70 7 7 . 68 58 9 . Successful Hack 182 | . 21 . . 26 14 62 . . 35 . 22 . . 2 . . Disable Machine 375 | . . . . 15 45 60 105 . 60 . 12 12 21 45 . . Anti-Garrison Action 2020 | . . . . . 150 . 900 . 226 . 38 . 196 . 510 . Destroy Structure 638 | . . . . 43 48 17 110 . 23 . 28 6 164 150 49 . Lose Combat Pursuer 378 | . 15 30 . 30 45 15 105 30 . . 36 . . . 72 . Influence Decreases 8002 | 5 342 123 40 479 46 944 405 1724 411 700 155 397 83 1221 372 555 Entered New Map 2819 | . . 24 . . 36 342 75 952 111 380 45 187 23 377 4 263 Time Decay 2581 | 5 322 99 40 365 . 592 . 222 . 150 . 190 . 334 . 262 Lost Part 476 | . 20 . . 20 10 10 50 . . . 10 20 40 120 146 30 Lost Ally 1232 | . . . . . . . 280 50 300 20 100 . 20 240 222 . Purge Threat 894 | . . . . 94 . . . 500 . 150 . . . 150 . . Squads Dispatched 22 | . 4 . . 1 . 3 . 2 . 3 . 1 . 8 . . Investigation 4 | . 2 . . 1 . . . . . . . . . 1 . . Extermination 5 | . . . . . . 3 . . . 1 . . . 1 . . Reinforcement 8 | . 2 . . . . . . 1 . 1 . 1 . 3 . . Assault . | . . . . . . . . . . . . . . . . . Garrison 5 | . . . . . . . . 1 . 1 . . . 3 . . Intercept . | . . . . . . . . . . . . . . . . . Searches Triggered . | . . . . . . . . . . . . . . . . . Construction Impeded 2 | . . . . . . . . . . . . 1 . 1 . . Haulers Reinforced 1 | . . . . . . . . . . . . . . 1 . . Active Scanning Responses . | . . . . . . . . . . . . . . . . . Cargo Convoy Interrupts . | . . . . . . . . . . . . . . . . . Stealth | -11 -10 -10 -10 -8 -8 -7 -7 -7 -7 -6 -6 -5 -5 -4 -4 -4 --------- Run | Yrd Mat Min Sub Mat Gar Fac Gar Fac Gar Fac Gar Fac Gar Fac Gar Fac Distress Signals 4 | . 2 . . . . . . . . . . . . . 1 1 Communications Jammed . | . . . . . . . . . . . . . . . . . Distress Signals . | . . . . . . . . . . . . . . . . . Times Spotted 308 | . 25 4 8 24 20 20 42 6 24 2 18 3 27 30 51 4 Peak Tracking Total 11 | . 7 3 3 5 5 4 6 4 4 1 7 2 4 8 11 3 Tactical Retreats 21 | . 1 1 . 1 3 1 4 2 . . 2 . . . 6 . Traps | -11 -10 -10 -10 -8 -8 -7 -7 -7 -7 -6 -6 -5 -5 -4 -4 -4 ------- Run | Yrd Mat Min Sub Mat Gar Fac Gar Fac Gar Fac Gar Fac Gar Fac Gar Fac Traps Triggered 50 | . 2 . 1 3 6 . 11 . 2 . 4 . 13 . 8 . Indirectly . | . . . . . . . . . . . . . . . . . Trap Hack Attempts . | . . . . . . . . . . . . . . . . . Triggered . | . . . . . . . . . . . . . . . . . Disarmed . | . . . . . . . . . . . . . . . . . Reprogrammed . | . . . . . . . . . . . . . . . . . Reused . | . . . . . . . . . . . . . . . . . Traps Extracted . | . . . . . . . . . . . . . . . . . Installed . | . . . . . . . . . . . . . . . . . Triggered . | . . . . . . . . . . . . . . . . . Most Traps Carried 1 | . . . 1 1 . . . . . . . . . . . . Machines | -11 -10 -10 -10 -8 -8 -7 -7 -7 -7 -6 -6 -5 -5 -4 -4 -4 ---------- Run | Yrd Mat Min Sub Mat Gar Fac Gar Fac Gar Fac Gar Fac Gar Fac Gar Fac Machines Disabled 47 | . . . . 1 5 4 11 . 7 . 2 1 6 5 5 . Max in Single Turn 5 | . . . . 1 1 4 1 . 1 . 1 1 1 5 1 . Garrison Relay 18 | . . . . . 2 . 4 . 3 . 1 . 4 . 4 . Machines Repaired . | . . . . . . . . . . . . . . . . . Machines Dismantled . | . . . . . . . . . . . . . . . . . Machines Sabotaged . | . . . . . . . . . . . . . . . . . Overloaded Fab Kills . | . . . . . . . . . . . . . . . . . Hacking | -11 -10 -10 -10 -8 -8 -7 -7 -7 -7 -6 -6 -5 -5 -4 -4 -4 --------- Run | Yrd Mat Min Sub Mat Gar Fac Gar Fac Gar Fac Gar Fac Gar Fac Gar Fac Machines Accessed 39 | . 4 1 1 7 2 5 3 2 3 1 2 1 2 2 2 1 Terminals 27 | . 4 . . 5 2 3 3 . 3 . 2 . 2 . 2 1 Fabricators 1 | . . . . . . . . 1 . . . . . . . . Repair Stations . | . . . . . . . . . . . . . . . . . Recycling Units . | . . . . . . . . . . . . . . . . . Scanalyzers 3 | . . . . 1 . 1 . . . . . . . 1 . . Garrison Access 6 | . . . . 1 . 1 . 1 . 1 . 1 . 1 . . Total Hacks 82 | . 15 1 4 19 4 8 3 2 7 1 3 1 6 3 3 2 Successful 39 | . 8 1 4 10 1 4 1 1 3 1 2 1 . 2 . . Failed 41 | . 7 . . 8 3 4 2 1 4 . 1 . 6 . 3 2 Catastrophic 12 | . . . . 3 . 2 2 . 1 . 1 . 1 . 1 1 Database Lockouts 2 | . . . . 1 . . . . . . . . . 1 . . Manual 22 | . 10 . . 9 . 2 . . . . . . . . . 1 Terminals 64 | . 15 . . 16 4 5 3 . 7 . 3 . 6 . 3 2 Fabricators 1 | . . . . . . . . 1 . . . . . . . . Repair Stations . | . . . . . . . . . . . . . . . . . Recycling Units . | . . . . . . . . . . . . . . . . . Scanalyzers 6 | . . . . 2 . 2 . . . . . . . 2 . . Garrison Access 6 | . . . . 1 . 1 . 1 . 1 . 1 . 1 . . Terminal Hacks 21 | . 4 1 4 4 1 1 1 . 3 . 2 . . . . . Record 4 | . . . 4 . . . . . . . . . . . . . Robot Analysis 2 | . 2 . . . . . . . . . . . . . . . Open Door 2 | . . 1 . . . . . . 1 . . . . . . . Branch Access Points 1 | . . . . 1 . . . . . . . . . . . . Emergency Access Points 4 | . . . . . 1 . 1 . 1 . 1 . . . . . Alert Level 1 | . . . . 1 . . . . . . . . . . . . Unreport Threat 1 | . . . . 1 . . . . . . . . . . . . Hauler Manifests 1 | . 1 . . . . . . . . . . . . . . . Zone Layout 3 | . 1 . . 1 . 1 . . . . . . . . . . Garrison Registry 2 | . . . . . . . . . 1 . 1 . . . . . Fabricator Hacks . | . . . . . . . . . . . . . . . . . Repair Station Hacks . | . . . . . . . . . . . . . . . . . Recycling Unit Hacks . | . . . . . . . . . . . . . . . . . Scanalyzer 4 | . . . . 1 . 2 . . . . . . . 1 . . Retrieve Study 4 | . . . . 1 . 2 . . . . . . . 1 . . Garrison Access Hacks 6 | . . . . 1 . 1 . 1 . 1 . 1 . 1 . . Unlock Access 6 | . . . . 1 . 1 . 1 . 1 . 1 . 1 . . Unauthorized Hacks 8 | . 4 . . 4 . . . . . . . . . . . . Terminals 8 | . 4 . . 4 . . . . . . . . . . . . Botnet 8 | . 4 . . 4 . . . . . . . . . . . . Fabricators . | . . . . . . . . . . . . . . . . . Repair Stations . | . . . . . . . . . . . . . . . . . Recycling Units . | . . . . . . . . . . . . . . . . . Scanalyzers . | . . . . . . . . . . . . . . . . . Garrison Access . | . . . . . . . . . . . . . . . . . Data Cores Recovered . | . . . . . . . . . . . . . . . . . Used . | . . . . . . . . . . . . . . . . . Hacking Detections 28 | . 4 . . 4 2 4 2 2 2 . 2 . 2 1 2 1 Full Trace Events 2 | . . . . . 1 . . . . . . . . . 1 . Feedback Events 1 | . . . . . . . . . . . . . . . 1 . Corruption 1 | . . . . . . . . . . . . . . . 1 . Feedback Blocked . | . . . . . . . . . . . . . . . . . Robot Schematics Acquired . | . . . . . . . . . . . . . . . . . Robots Built . | . . . . . . . . . . . . . . . . . Authchips . | . . . . . . . . . . . . . . . . . Time . | . . . . . . . . . . . . . . . . . Total Robot Build Rating . | . . . . . . . . . . . . . . . . . Part Schematics Acquired . | . . . . . . . . . . . . . . . . . Parts Built . | . . . . . . . . . . . . . . . . . Authchips . | . . . . . . . . . . . . . . . . . Time . | . . . . . . . . . . . . . . . . . Total Part Build Rating . | . . . . . . . . . . . . . . . . . Part Studies Acquired 4 | . . . . 1 . 2 . . . . . . . 1 . . Parts Repaired . | . . . . . . . . . . . . . . . . . Time . | . . . . . . . . . . . . . . . . . Parts Recycled . | . . . . . . . . . . . . . . . . . Recycled Matter . | . . . . . . . . . . . . . . . . . Retrieved Matter . | . . . . . . . . . . . . . . . . . Retrieved Components . | . . . . . . . . . . . . . . . . . Parts Scanalyzed . | . . . . . . . . . . . . . . . . . Part Schematics Acquired . | . . . . . . . . . . . . . . . . . Parts Damaged . | . . . . . . . . . . . . . . . . . Bothacking | -11 -10 -10 -10 -8 -8 -7 -7 -7 -7 -6 -6 -5 -5 -4 -4 -4 ------------ Run | Yrd Mat Min Sub Mat Gar Fac Gar Fac Gar Fac Gar Fac Gar Fac Gar Fac Used RIF Installer 6 | . . . . . 1 . 1 . 1 . 1 . 1 . 1 . Command Fork 1 | . . . . . . . 1 . . . . . . . . . Threat Obfuscator 2 | . . . . . . . . . 1 . . . 1 . . . Robot Detection 1 | . . . . . . . . . . . . . . . 1 . Program Shield 1 | . . . . . . . . . . . 1 . . . . . Robots Hacked 63 | . . . . . . . 4 6 13 2 4 2 11 9 12 . Non-combat 7 | . . . . . . . . 3 . 2 . 1 . 1 . . Combat 56 | . . . . . . . 4 3 13 . 4 1 11 8 12 . Robot Hacks Applied 74 | . . . . . . . 4 12 14 3 4 3 11 10 13 . purge_threat 7 | . . . . . . . . 5 . 1 . . . 1 . . locate_traps 1 | . . . . . . . . . . 1 . . . . . . map_route 2 | . . . . . . . . 1 . 1 . . . . . . find_garrison 3 | . . . . . . . . 1 . . . 1 . 1 . . link_fov 2 | . . . . . . . . 1 . . . 1 . . . . spike_heat 1 | . . . . . . . . . . . . . 1 . . . amplify_resonance 1 | . . . . . . . . . . . . . 1 . . . wipe_record 1 | . . . . . . . . . . . 1 . . . . . disable_weapons 9 | . . . . . . . . 1 4 . . 1 3 . . . overwrite_iff 20 | . . . . . . . 2 1 3 . 1 . 1 3 9 . streamctrl_high 1 | . . . . . . . . . . . . . . 1 . . formatsys_low 1 | . . . . . . . . 1 . . . . . . . . formatsys_high 25 | . . . . . . . 2 1 7 . 2 . 5 4 4 . Relay Couplers Released 74 | . . . . . 11 . 16 . 11 . 5 . 14 . 17 . Machine Destruction 70 | . . . . . 7 . 16 . 11 . 5 . 14 . 17 . Programmers 4 | . . . . . 4 . . . . . . . . . . . Attached 45 | . . . . . . . 5 3 8 1 3 2 6 5 11 1 Fabnet Peak Effective % . | . . . . . . . . . . . . . . . . . Robots Rewired 20 | . . . . . . . 12 . 6 . . . . . 2 . Allies Hacked 1 | . . . . . . . 1 . . . . . . . . . Hacks Repelled . | . . . . . . . . . . . . . . . . . Allies | -11 -10 -10 -10 -8 -8 -7 -7 -7 -7 -6 -6 -5 -5 -4 -4 -4 -------- Run | Yrd Mat Min Sub Mat Gar Fac Gar Fac Gar Fac Gar Fac Gar Fac Gar Fac Total Allies 76 | . . 1 . . . . 18 3 19 . 3 . 7 9 16 . Largest Group 8 | . . 1 . . . . 8 4 7 3 3 . 4 5 4 . Highest-Rated Group 222 | . . 31 . . . . 175 112 116 61 87 . 172 222 200 . Highest-Rated Ally 116 | . . 31 . . . . 95 32 32 29 29 . 49 58 116 . Total Orders 19 | . . . . 1 . 2 1 2 3 . 2 . 6 2 . . STAY 8 | . . . . . . . . 1 2 . 1 . 3 1 . . FOLLOW 7 | . . . . . . . . 1 1 . 1 . 3 1 . . EXPLORE 2 | . . . . 1 . 1 . . . . . . . . . . RETURN 2 | . . . . . . 1 1 . . . . . . . . . Ally Attacks 435 | . . . . . . . 109 18 84 17 19 . 74 67 47 . Total Damage 11141 | . . . . . . . 2367 267 1840 171 233 . 2895 1562 1806 . Kills 74 | . . . . . . . 21 2 13 2 1 . 21 11 3 . Allies Corrupted 1 | . . . . . . . 1 . . . . . . . . . Allies Melted . | . . . . . . . . . . . . . . . . . Intel | -11 -10 -10 -10 -8 -8 -7 -7 -7 -7 -6 -6 -5 -5 -4 -4 -4 ------- Run | Yrd Mat Min Sub Mat Gar Fac Gar Fac Gar Fac Gar Fac Gar Fac Gar Fac Active Infowar (turns) 8100 | 5 70 . . . . 1052 2 . . 236 787 386 1556 744 2699 563 Optics 6971 | . . . . . . . . . . 236 787 386 1556 744 2699 563 Seismic 75 | 5 70 . . . . . . . . . . . . . . . Spoofing 2 | . . . . . . . 2 . . . . . . . . . Jamming 1052 | . . . . . . 1052 . . . . . . . . . . Robot Analysis Total 2 | . 2 . . . . . . . . . . . . . . . Derelict Logs Recovered 2 | . . 1 1 . . . . . . . . . . . . . Drone Launches 7 | . . . . 1 . 6 . . . . . . . . . . Drone Recoveries 6 | . . . . 1 . 4 1 . . . . . . . . . Exploration | -11 -10 -10 -10 -8 -8 -7 -7 -7 -7 -6 -6 -5 -5 -4 -4 -4 ------------- Run | Yrd Mat Min Sub Mat Gar Fac Gar Fac Gar Fac Gar Fac Gar Fac Gar Fac Turns Passed 20950 | 71 976 1207 1978 1621 1177 1860 2787 465 1746 302 787 386 1581 744 2699 563 Spaces Moved 9871 | 50 480 585 885 705 466 1030 1322 209 902 190 439 216 768 380 1048 196 Core 3 | 3 . . . . . . . . . . . . . . . . Treads 1333 | 6 480 358 . . . . . . . . . . . . 293 196 Legs 1389 | . . . . 688 466 235 . . . . . . . . . . Wheels 7146 | 41 . 227 885 17 . 795 1322 209 902 190 439 216 768 380 755 . Hover . | . . . . . . . . . . . . . . . . . Flight . | . . . . . . . . . . . . . . . . . Fastest Speed 50 | 50 160 160 190 116 114 130 130 160 145 145 145 145 145 145 135 160 Average Speed 163 | 94 160 181 214 185 184 143 148 160 145 145 145 157 157 157 151 225 Slowest Speed 240 | 160 160 215 215 215 188 205 205 160 160 145 145 160 160 160 160 240 Overloaded Moves . | . . . . . . . . . . . . . . . . . Propulsion Burnouts . | . . . . . . . . . . . . . . . . . Robots Hopped . | . . . . . . . . . . . . . . . . . Potential Cave-ins . | . . . . . . . . . . . . . . . . . Cave-ins Triggered . | . . . . . . . . . . . . . . . . . Exploration Rate (%) 45 | 4 66 99 48 56 52 36 95 7 67 6 43 10 85 14 73 6 Regions Visited 16 Branch Regions 2 Pre-discovered Areas . | . . . . . . . . . . . . . . . . . Known Exits Taken 6 | . . . . 1 . 1 . 1 . 1 . 1 . 1 . . Unknown Exits Taken 4 | 1 1 1 1 . . . . . . . . . . . . . Scrap Searched 1 | . . 1 . . . . . . . . . . . . . . Spaces Dug 28 | . . . . 12 8 2 . . . . . . 3 2 1 . Terrain Destroyed 186 | . . . 35 43 15 15 . . . . . 3 7 64 4 . Melee 1 | . . . . . . . . . . . . . . . 1 . Projectile 51 | . . . 1 14 . 1 . . . . . 3 7 22 3 . AOE 134 | . . . 34 29 15 14 . . . . . . . 42 . . Terrain Rammed . | . . . . . . . . . . . . . . . . . Walls Destroyed . | . . . . . . . . . . . . . . . . . Machines Disabled . | . . . . . . . . . . . . . . . . . Actions | -11 -10 -10 -10 -8 -8 -7 -7 -7 -7 -6 -6 -5 -5 -4 -4 -4 --------- Run | Yrd Mat Min Sub Mat Gar Fac Gar Fac Gar Fac Gar Fac Gar Fac Gar Fac Total 13700 | 68 606 697 932 940 704 1367 2019 335 1261 212 550 255 1074 470 1904 306 Wait 1874 | 4 37 74 7 87 86 245 286 96 175 10 24 4 100 12 545 82 Move 9860 | 49 479 584 884 705 465 1030 1321 209 901 189 438 216 767 380 1047 196 Hop . | . . . . . . . . . . . . . . . . . Pick Up 177 | 5 13 8 7 22 15 9 18 5 11 1 3 5 14 2 28 11 Fast Attach 65 | 7 2 . . 9 3 9 6 2 1 1 2 . 6 4 12 1 Attach 59 | . 2 . 3 7 3 1 3 1 2 1 2 3 2 6 18 5 Detach 10 | . . . . 4 2 . 1 . . . . . . . 2 1 Swap 136 | 2 10 4 10 6 5 7 16 4 16 2 7 6 10 5 25 1 Drop 156 | . 11 6 2 25 20 17 22 5 7 1 2 7 10 . 18 3 Fire 807 | 1 48 18 19 74 90 49 128 13 66 7 40 14 69 61 104 6 Melee 59 | . . . . . . . 4 . 10 . . . . . 45 . Ram 1 | . . 1 . . . . . . . . . . . . . . Kick 1 | . . . . 1 . . . . . . . . . . . . Crush 13 | . 4 2 . . . . . . . . . . . . 7 . Escape Stasis 277 | . . . . . 15 . 72 . 16 . 32 . 96 . 46 . Rewire 205 | . . . . . . . 142 . 56 . . . . . 7 . Trap . | . . . . . . . . . . . . . . . . . Miscellaneous . | . . . . . . . . . . . . . . . . . Route ------- -11/Scrapyard -10/Materials (discovered 3 exits: [*Mat x2] / *Min) -10/Mines (discovered 3 exits: [*Mat x2] / *Sub) -10/Subcaves -8/Materials -8/Garrison -7/Factory -7/Garrison (discovered 3 exits: *Fac x3) -7/Factory -7/Garrison (discovered 3 exits: *Fac x3) -6/Factory -6/Garrison (discovered 3 exits: *Fac x3) -5/Factory -5/Garrison (discovered 3 exits: *Fac x3) -4/Factory -4/Garrison (discovered 3 exits: *Fac x3) -4/Factory History --------- Turn | Location | Event 21 | -11/Scrapyard | Discovered new exit (range 16) 72 | -11/Scrapyard | Entered Materials 311 | -10/Materials | Build established: Mutant 312 | -10/Materials | Discovered new exit (range 16) 486 | -10/Materials | Discovered new exit (range 15) 720 | -10/Materials | Core integrity fell below 50% 893 | -10/Materials | Discovered new exit (range 8) 1048 | -10/Materials | Entered Mines 1268 | -10/Mines | Found the Drone Emporium 1277 | -10/Mines | Found Prototype Device 1378 | -10/Mines | Learned 4 Materials zone layouts 1708 | -10/Mines | YI-UF0 nonchalantly dropped a Grenade Launcher on the ground 1731 | -10/Mines | Discovered new exit (range 6) 1734 | -10/Mines | Received a Mining Laser from a helpful Derelict 2080 | -10/Mines | Discovered new exit (range 8) 2237 | -10/Mines | Discovered new exit (range 5) 2255 | -10/Mines | Entered Subcaves 2315 | -10/Subcaves | A Subdweller sparked back to life 2315 | -10/Subcaves | A Subdweller sparked back to life 2315 | -10/Subcaves | A Subdweller sparked back to life 2340 | -10/Subcaves | Found Prototype Leg 2474 | -10/Subcaves | Visited Clippyterm 2480 | -10/Subcaves | Learned Factory trap positions 2635 | -10/Subcaves | Shifting Twisted Machinery released Sub. Laser 2656 | -10/Subcaves | Shifting Twisted Machinery released Hvy. Battle Rifle 2992 | -10/Subcaves | Learned Materials terminal intel 3682 | -10/Subcaves | Build established: Scavenger-Mutant 3773 | -10/Subcaves | Discovered new exit (range 16) 4039 | -10/Subcaves | Core integrity fell below 20% 4233 | -10/Subcaves | Entered Materials 4233 | -8/Materials | Evolved 4 slots: Propulsion x2, Utility x2 4235 | -8/Materials | Loaded intel: 12 terminal locations 4273 | -8/Materials | Identified Arachnoskeleton 4274 | -8/Materials | Attached Arachnoskeleton, gained temporary slots: Propulsion x3 4289 | -8/Materials | Identified Sensor Drone Bay 4563 | -8/Materials | Build established: Mutant 5296 | -8/Materials | Central database locked down 5854 | -8/Materials | Identified exit to Garrison 5854 | -8/Materials | Entered Garrison 6006 | -8/Garrison | Installed Relay Interface Framework 6116 | -8/Garrison | Triggered checkpoint 6157 | -8/Garrison | Garrison Relay disabled 6345 | -8/Garrison | Triggered checkpoint 6380 | -8/Garrison | Triggered checkpoint 6589 | -8/Garrison | Triggered checkpoint 6851 | -8/Garrison | Garrison Relay disabled 6974 | -8/Garrison | Triggered checkpoint 7005 | -8/Garrison | Discovered new exit (range 12) 7031 | -8/Garrison | Entered Factory 7031 | -7/Factory | Evolved 2 slots: Utility x2 7032 | -7/Factory | Loaded intel: 66 trap records 7803 | -7/Factory | Build established: Scavenger-Mutant 8889 | -7/Factory | Identified exit to Garrison 8891 | -7/Factory | Entered Garrison 8891 | -7/Garrison | Accompanied by 1 ally 8971 | -7/Garrison | Triggered checkpoint 9024 | -7/Garrison | Garrison Relay disabled 9092 | -7/Garrison | Triggered checkpoint 9362 | -7/Garrison | Discovered new exit (range 9) 9373 | -7/Garrison | Found embedded Infiltrators 9444 | -7/Garrison | Triggered checkpoint 9728 | -7/Garrison | Triggered checkpoint 9763 | -7/Garrison | Triggered checkpoint 9790 | -7/Garrison | Triggered checkpoint 10250 | -7/Garrison | Discovered new exit (range 7) 10251 | -7/Garrison | Triggered checkpoint 10287 | -7/Garrison | Triggered checkpoint 10287 | -7/Garrison | Lost 4 allies 10420 | -7/Garrison | Lost 3 allies 10502 | -7/Garrison | Discovered new exit (range 13) 10541 | -7/Garrison | Triggered checkpoint 10552 | -7/Garrison | Build established: Bothacker-Mutant 10663 | -7/Garrison | Expanded RIF knowledge: Command Fork 10722 | -7/Garrison | Garrison Relay disabled 10835 | -7/Garrison | Triggered checkpoint 10930 | -7/Garrison | Triggered checkpoint 10976 | -7/Garrison | Garrison Relay disabled 11176 | -7/Garrison | Triggered checkpoint 11191 | -7/Garrison | Garrison Relay disabled 11678 | -7/Garrison | Entered Factory 11678 | -7/Factory | Accompanied by 3 allies 12121 | -7/Factory | Garrison activated, responded to threat 12134 | -7/Factory | Identified exit to Garrison 12143 | -7/Factory | Entered Garrison 12143 | -7/Garrison | Accompanied by 3 allies 12199 | -7/Garrison | Triggered checkpoint 12230 | -7/Garrison | Garrison Relay disabled 12361 | -7/Garrison | Rescued a captive Derelict 12363 | -7/Garrison | Rescued a captive Derelict 12406 | -7/Garrison | Lost 3 allies 12472 | -7/Garrison | Triggered checkpoint 12477 | -7/Garrison | Triggered checkpoint 12494 | -7/Garrison | Triggered checkpoint 12532 | -7/Garrison | Lost 3 allies 12659 | -7/Garrison | Triggered checkpoint 13167 | -7/Garrison | Triggered checkpoint 13178 | -7/Garrison | Lost 4 allies 13201 | -7/Garrison | Discovered new exit (range 65) 13201 | -7/Garrison | Discovered new exit (range 57) 13201 | -7/Garrison | Discovered new exit (range 18) 13290 | -7/Garrison | Core integrity fell below 50% 13344 | -7/Garrison | Triggered checkpoint 13444 | -7/Garrison | Expanded RIF knowledge: Threat Obfuscation 13685 | -7/Garrison | Garrison Relay disabled 13823 | -7/Garrison | Garrison Relay disabled 13859 | -7/Garrison | Heavy support dispatched to Factory 13889 | -7/Garrison | Entered Factory 13889 | -6/Factory | Accompanied by 3 allies 13889 | -6/Factory | Evolved 2 slots: Utility x2 13986 | -6/Factory | Garrison activated, responded to threat 14185 | -6/Factory | Identified exit to Garrison 14191 | -6/Factory | Entered Garrison 14191 | -6/Garrison | Accompanied by 2 allies 14213 | -6/Garrison | Expanded RIF knowledge: Program Shield 14259 | -6/Garrison | Triggered checkpoint 14291 | -6/Garrison | Garrison Relay disabled 14453 | -6/Garrison | Triggered checkpoint 14498 | -6/Garrison | Build established: Botlord-Mutant 14539 | -6/Garrison | Discovered new exit (range 86) 14539 | -6/Garrison | Discovered new exit (range 61) 14539 | -6/Garrison | Discovered new exit (range 58) 14618 | -6/Garrison | Triggered checkpoint 14654 | -6/Garrison | Triggered checkpoint 14684 | -6/Garrison | Destroyed 10 combat bots 14692 | -6/Garrison | Lost 5 allies 14978 | -6/Garrison | Entered Factory 14978 | -5/Factory | Evolved 2 slots: Power x1, Utility x1 15364 | -5/Factory | Identified exit to Garrison 15364 | -5/Factory | Entered Garrison 15414 | -5/Garrison | Triggered checkpoint 15508 | -5/Garrison | Lost 4 parts (1p1n2u) 15530 | -5/Garrison | Garrison Relay disabled 15674 | -5/Garrison | Triggered checkpoint 15717 | -5/Garrison | Triggered checkpoint 15776 | -5/Garrison | Triggered checkpoint 15831 | -5/Garrison | Discovered new exit (range 11) 15866 | -5/Garrison | Triggered checkpoint 16010 | -5/Garrison | Garrison Relay disabled 16204 | -5/Garrison | Discovered new exit (range 19) 16228 | -5/Garrison | Expanded RIF knowledge: Threat Obfuscation 16280 | -5/Garrison | Triggered checkpoint 16343 | -5/Garrison | Garrison Relay disabled 16453 | -5/Garrison | Triggered checkpoint 16614 | -5/Garrison | Triggered checkpoint 16656 | -5/Garrison | Garrison Relay disabled 16883 | -5/Garrison | Discovered new exit (range 11) 16945 | -5/Garrison | Entered Factory 16945 | -4/Factory | Accompanied by 4 allies 16945 | -4/Factory | Evolved 2 slots: Utility x2 17312 | -4/Factory | Lost 3 allies 17480 | -4/Factory | Lost 3 parts (2p1w) 17492 | -4/Factory | Lost 4 allies 17505 | -4/Factory | Central database locked down 17662 | -4/Factory | Lost 3 parts (1p1n1u) 17689 | -4/Factory | Identified exit to Garrison 17689 | -4/Factory | Entered Garrison 17696 | -4/Garrison | Lost 6 allies 17717 | -4/Garrison | Lost 6 parts (3n2u1w) 17731 | -4/Garrison | Triggered checkpoint 17842 | -4/Garrison | Expanded RIF knowledge: Robot Detection 17856 | -4/Garrison | Garrison Relay disabled 17931 | -4/Garrison | Spotted Striker 17952 | -4/Garrison | Rewired Striker 17985 | -4/Garrison | Triggered checkpoint 17998 | -4/Garrison | Rewired Striker 18046 | -4/Garrison | Spotted B-86 Titan 18047 | -4/Garrison | Assimilated Titan 7a with formatsys_high 18083 | -4/Garrison | Lost 6 allies 18875 | -4/Garrison | Triggered checkpoint 18948 | -4/Garrison | Discovered new exit (range 12) 19009 | -4/Garrison | Triggered checkpoint 19082 | -4/Garrison | Garrison Relay disabled 19185 | -4/Garrison | Found Unknown Protection 19185 | -4/Garrison | Identified Hvy. Reflective Plating 19366 | -4/Garrison | Garrison Relay disabled 19417 | -4/Garrison | Discovered new exit (range 8) 19426 | -4/Garrison | Garrison Relay disabled 19671 | -4/Garrison | Triggered checkpoint 19698 | -4/Garrison | Spotted Striker 19698 | -4/Garrison | Spotted Striker 19700 | -4/Garrison | Spotted Striker 19717 | -4/Garrison | Core integrity fell below 50% 19756 | -4/Garrison | Lost 6 allies 19787 | -4/Garrison | Destroyed Striker 19792 | -4/Garrison | Lost 8 parts (2p2n3u1w) 19813 | -4/Garrison | Core integrity fell below 20% 19819 | -4/Garrison | Destroyed Striker 19832 | -4/Garrison | Destroyed Striker 19903 | -4/Garrison | Discovered new exit (range 7) 20058 | -4/Garrison | Build established: Scavenger-Mutant 20388 | -4/Garrison | Entered Factory 20951 | -4/Factory | Self-destructed Last Messages --------------- 20689_ K-01 Serf collects debris. 20863_ Acquired Adv. Heat Sink. 20928_ Penetrated by Slug. 20928_ Slug penetrates Wall. 20931_ K-01 Serf cleans the TF Node. 20935_ Penetrated by Slug. 20936_ T-07 Excavator destroyed. 20938_ Penetrated by Slug. 20939_ Slug penetrates Wall. 20941_ Dropped Lgt. Particle Reactor. 20942_ Acquired Wheel. 20943_ Slug penetrates Wall. 20945_ Dropped Neutrino Core. 20946_ Acquired Wheel. 20947_ Slug penetrates Wall. 20947_ Imp. Heavy Treads destroyed. 20947_ Slug penetrates Wall. 20949_ Wall collapses. 20950_ Plasma Rifle destroyed. 20950_ Penetrated by Slug. Map ----- +----------------------------------------------------+ | ??????????????????????????? ?????????????????????? | | ??????????????????????#+###+###??????????????????? | | ??????????????????????# ??????????????????? | | ??????????????????????# ??????????????????? | | ??????????????????????# ???????????????????? | | ??????????????????????+ ???????????????????? | | ??????????????????????# ???????????????????? | | ??????????????????????? ???????????????????? | | ??????????????????????? hhk???????????????????? | | ???????????????????????# #???????????????????? | | ?######????????????????# #???????????????????? | | ? #????????????????# #???????????????????? | | ?? #????????????????# #???????????????????? | | ?? #????????????????# #???????????????????? | | ??# #????????????????# #???????????????????? | | ??# #????????????????# #???????????????????? | | ### #????????????????# #???????????????????? | | #????????????????# #???????????????????? | | +## #????????????????# #???????????????????? | | # #?????#######????# #???????????????????? | | # ####### #????# #???????????????????? | | " # s s###### #???????????????????? | | " + s s " #???????????????????? | | " # #######;+#########?????????????? | | " ## # %* #?????????????? | | ## ###### @ #?????????????? | | ## + * #?????????????? | | ################### #?????????????? | | ??????????????????# #?????????????? | | ??????????????????# #?????????????? | | ??????????????????# #?????????????? | | ??????????????????# #?????????????? | | ??????????????????# #?????????????? | | ??????????????????##################?????????????? | | ?????????????????????????????????????????????????? | | ?????????????????????????????????????????????????? | | ?????????????????????????????????????????????????? | | ?????????????????????????????????????????????????? | | ?????????????????????????????????????????????????? | | ?????????????????????????????????????????????????? | | ?????????????????????????????????????????????????? | | ?????????????????????????????????????????????????? | | ?????????????????????????????????????????????????? | | ?????????????????????????????????????????????????? | | ?????????????????????????????????????????????????? | | ?????????????????????????????????????????????????? | | ?????????????????????????????????????????????????? | | ?????????????????????????????????????????????????? | | ?????????????????????????????????????????????????? | | ?????????????????????????????????????????????????? | +----------------------------------------------------+ Best States ------------- Heat Dissipation 93 Coolant Potential 80 Energy Generation 45 Energy Capacity 540 Matter Stores 300 Matter Capacity 300 Sight Range 22 Terrain Scan Density 10 Jamming Range 12 Armor Coverage 600 Resistance: KI 20 Resistance: TH 25 Phase Shifting 10 Evasion (%) 50 Targeting Accuracy 8 Launcher Accuracy 20 Core Analysis 6 Recoil Reduction 4 Relay Coupler Types 8 Relay Coupler Value 146 Item Schematics ----------------- None Robot Schematics ------------------ None Fabricated ------------ Nothing Repaired ---------- Nothing Studied --------- Hvy. Particle Cannon | -8/Materials | Hacked Imp. Ion Engine | -7/Factory | Hacked Rocket Launcher | -7/Factory | Hacked Arm. Huge Wheel | -4/Factory | Hacked Alien Tech Used ----------------- None Achievements -------------- None Challenges ------------ None Game ------ Seed HardcellCoolantConstruct Manual? 0 Play Time 02:26:51 Cumulative 160.0 hours Start 2026.03.30 @ 22:39:26 End 2026.03.31 @ 18:16:59 Sessions 5 Manual Loads 0 Difficulty Rogue Special Mode None Game No. 130 Rogue 130 Adventurer 0 Explorer 0 Win Type - Total 2 Types 2/0/0/0/0/0/0/0/0/0 Lore% 72 Gallery% 60 Achievement% 52 Wizard Run 0 Options --------- Layout 2 ASCII 0 Keyboard 0 Movement Mouse Keybinds 0 Fullscreen 1 Font 24/Smallcaps Map View 50x44 Zoom Use 0% Tactical HUD 1 Map Filters NONE Filters NONE Steam 1 RUN: bbc92475-b571-485c-aef8-acdc014f91d9